Workbook

Sheet CasaPLUS
C2: COTIZACIÓN SEGURO DOMICILIARIO CASAPLUSV7.1
U3: Dólares (US$) | V3: US$ | W3: A. Programa Básico | AA3: Concreto Armado | AB3: Departamento | AC3: SI
C4: CONTRATANTE | U4: Sol ( S/ ) | V4: S/ | W4: B. Programa Básico + Programa Full | AA4: Ladrillo y Cemento | AB4: Casa | AC4: NO
C5: ASEGURADO | AA5: Estructura de Acero
C6: CORREDOR | J6: Oficina | M6: Ejecutivo Comercial | U6: Tipo de Cambio | V6: 4.1 | AA6: Madera y/o Adobe y/o quincha
C7: ENDOSATARIO | D7: NO | E7: Nombre del Endosatario
C8: MONEDA | D8: Dólares (US$) | I8: Fecha Cotización | J8: =TODAY() -> 2021-08-17 | K8: Validez de la cotización | M8: 15 días | N8: Vigencia del seguro | P8: 1 Año | U8: monto minimo C | V8: 500
C10: DATOS SBS | U10: limite SA | V10: 1500000
C11: Ubicación del riesgo | I11: Tipo de Vivienda | J11: Tipo Estructura | K11: Nro. Pisos | L11: Nro. Sótanos | M11: Año Construc. | N11: Valor Declarado
N12: Edificio | O12: Contenido | P12: Total | U12: valor verdadero | V12: Excede limite permitido
I13: Departamento | N13: 150000 | O13: 5000 | P13: =SUM(N13:O13) -> 155000 | U13: valor verdadero | V13: Debe asegurar edificio
C14: COBERTURAS SOLICITADAS | D14: B. Programa Básico + Programa Full
U15: valor verdadero | V15: Debe asegurar contenido
C16: Plan | D16: Moneda | E16: Prima Comercial | I16: Prima Comercial + IGV Anual | J16: Descuento | K16: Prima Comercial + IGV Anual | M16: =IF(OR(M17=V13,M18=V12),"Observaciones"," ") -> 
C17: Plan Estandar | D17: =IF($D$8="Dólares (US$)","US$","S/") -> US$ | E17: =IF(OR(M17=V13,M18=V12,M19=V15),"No Aplica",IF(D8=U3,I128,M128)) -> 299.4725 | I17: =IFERROR(E17*1.18,"No Aplica") -> 353.37755 | J17: 0 | K17: =IF(E17="No Aplica","No aplica",IF(AND($D$8=U3,(I17*(1-J17)<I120)),I120,IF(AND($D$8=U4,I17*(1-J17)<M120),M120,I17*(1-J17)))) -> 353.37755 | M17: =IF(O13>N13,V13," ") -> 
C18: Plan Premium | D18: =D17 -> US$ | E18: =IF(OR(M17=V13,M18=V12),"No Aplica",IF(D8=U3,J128,N128)) -> 314.9225 | I18: =IFERROR(E18*1.18,"No Aplica") -> 371.60855 | J18: =J17 -> 0 | K18: =IF(E18="No Aplica","No aplica",IF(AND($D$8=U3,(I18*(1-J17)<J120)),J120,IF(AND($D$8=U4,I18*(1-J17)<N120),N120,I18*(1-J17)))) -> 371.60855 | M18: =IF(AND(D8=U3,P13>V10),V12,IF(AND(D8=U4,P13>V10*V6),V12," ")) -> 
C19: Plan Gold | D19: =D18 -> US$ | E19: =IF(OR(M17=V13,M18=V12),"No Aplica",IF(D8=U3,K128,O128)) -> 325.2225 | I19: =IFERROR(E19*1.18,"No Aplica") -> 383.76255 | J19: =J17 -> 0 | K19: =IF(E19="No aplica","No aplica",IF(AND($D$8=U3,(I19*(1-J17)<K120)),K120,IF(AND($D$8=U4,I19*(1-J17)<O120),O120,I19*(1-J17)))) -> 383.76255 | M19: =IF(O13<V8*2,V15," ") -> 
O20: =+IF(D14=W3,1,0) -> 0
C23: Coberturas Principales | F23: SA Maxima Plan Estandar | G23: SA Maxima Plan Premium | H23: SA Maxima Plan Gold | I23: Suma Asegurada | K23: =IF(D8=U3,V3,V4) -> US$ | L23: Deducibles | T23: Plan Estandar | V23: Plan Premium | X23: Plan Gold
I24: P. Estandar | J24: P. Premium | K24: P. Gold | T24: SA Dolares | U24: SA Soles | V24: SA Dolares | W24: SA Soles | X24: SA Dolares | Y24: SA Soles
C25: I. PROGRAMA BASICO
C26: Este seguro cubre la destrucción o daño físico directo de la vivienda y su contenido como consecuencia directa de: | I26: =+P13 -> 155000 | J26: =+P13 -> 155000 | K26: =+P13 -> 155000
C27: Incendio y/o rayo, explosión, daños por agua, lluvia e inundación, caída de aeronaves, impacto de vehículos terrestres, daños por humo. | F27: Hasta el 100% de la Suma Asegurada (SA) de la Vivienda + Contenido | I27: =P13 -> 155000 | J27: =P13 -> 155000 | K27: =P13 -> 155000 | L27: =Hoja1!B4 -> 10% del Monto Indemnizable mínimo US$ 200
C28: Terremoto, temblor, erupción volcánica, maremoto (Tsunami), salida de mar, marejada, oleaje. | I28: =P13 -> 155000 | J28: =P13 -> 155000 | K28: =P13 -> 155000 | L28: =Hoja1!B5 -> 1% de la Suma Asegurada de la Vivienda + Contenido, minimo US$ 500,lo que resulte mayor
C29: Huelga y conmoción civil, daño malicioso, vandalismo y/o terrorismo, limite agregado vigencia hasta. | I29: =P13 -> 155000 | J29: =P13 -> 155000 | K29: =P13 -> 155000 | L29: =Hoja1!B6 -> 5% del monto indemnizable mínimo US$ 200
F32: 50000 | G32: 100000 | H32: 200000 | I32: =IF($D$8=U3,T33,U33) -> 50000 | J32: =IF($D$8=U3,V33,W33) -> 100000 | K32: =IF($D$8=U3,X33,Y33) -> 200000
C33: Responsabilidad Civil Extracontractual Frente a Terceros, por evento y en agregado vigencia hasta: | L33: =CONCATENATE(Hoja1!C9," ",Hoja1!D9," ",Hoja1!E9, ,Hoja1!F9) -> US$ 200 | T33: =+F32 -> 50000 | U33: =+F32*V6 -> 205000 | V33: =+G32 -> 100000 | W33: =+G32*V6 -> 410000 | X33: =+H32 -> 200000 | Y33: =+H32*V6 -> 820000
C34: Coberturas Adicionales
C35: Rotura de vidrios, espejos y unidades sanitarias, hasta el 20% de la Suma Asegurada de la Vivienda, máximo: | F35: 10000 | G35: 20000 | H35: 30000 | I35: =IF($D$8=U3,T35,U35) -> 10000 | J35: =IF($D$8=U3,V35,W35) -> 20000 | K35: =IF($D$8=U3,X35,Y35) -> 30000 | L35: =CONCATENATE(Hoja1!C7," ",Hoja1!D7," ",Hoja1!E7, ,Hoja1!F7) -> 10% del Monto Indemnizable, mínimo US$ 30 | T35: =IF($N$13*0.2<F35,$N$13*0.2,F35) -> 10000 | U35: =IF($N$13*0.2<F35*$V$6,$N$13*0.2,F35*$V$6) -> 30000 | V35: =IF($N$13*0.2<G35,$N$13*0.2,G35) -> 20000 | W35: =IF($N$13*0.2<G35*$V$6,$N$13*0.2,G35*$V$6) -> 30000 | X35: =IF($N$13*0.2<H35,$N$13*0.2,H35) -> 30000 | Y35: =IF($N$13*0.2<H35*$V$6,$N$13*0.2,H35*$V$6) -> 30000
C36: Gastos Extras, hasta el 20% de la Suma Asegurada de la Vivienda + Contenido, máximo: | F36: 30000 | G36: 40000 | H36: 50000 | I36: =IF($D$8=U3,T36,U36) -> 30000 | J36: =IF($D$8=U3,V36,W36) -> 31000 | K36: =IF($D$8=U3,X36,Y36) -> 31000 | L36: El de la cobertura afectada | T36: =IF($P$13*0.2<F36,$P$13*0.2,F36) -> 30000 | U36: =IF($P$13*0.2<F36*$V$6,$P$13*0.2,F36*$V$6) -> 31000 | V36: =IF($P$13*0.2<G36,$P$13*0.2,G36) -> 31000 | W36: =IF($P$13*0.2<G36*$V$6,$P$13*0.2,G36*$V$6) -> 31000 | X36: =IF($P$13*0.2<H36,$P$13*0.2,H36) -> 31000 | Y36: =IF($P$13*0.2<H36*$V$6,$P$13*0.2,H36*$V$6) -> 31000
C37: Gastos de remoción de escombros, hasta el 20% de la Suma Asegurada de la Vivienda + Contenido, máximo: | F37: 30000 | G37: 40000 | H37: 50000 | I37: =IF($D$8=U3,T37,U37) -> 30000 | J37: =IF($D$8=U3,V37,W37) -> 31000 | K37: =IF($D$8=U3,X37,Y37) -> 31000 | L37: Sin Deducible | T37: =IF($P$13*0.2<F37,$P$13*0.2,F37) -> 30000 | U37: =IF($P$13*0.2<F37*$V$6,$P$13*0.2,F37*$V$6) -> 31000 | V37: =IF($P$13*0.2<G37,$P$13*0.2,G37) -> 31000 | W37: =IF($P$13*0.2<G37*$V$6,$P$13*0.2,G37*$V$6) -> 31000 | X37: =IF($P$13*0.2<H37,$P$13*0.2,H37) -> 31000 | Y37: =IF($P$13*0.2<H37*$V$6,$P$13*0.2,H37*$V$6) -> 31000
C38: Gastos de extinción y contención del siniestro, hasta el 20% de la Suma Asegurada de la Vivienda + Contenido, máximo: | F38: 30000 | G38: 40000 | H38: 50000 | I38: =IF($D$8=U3,T38,U38) -> 30000 | J38: =IF($D$8=U3,V38,W38) -> 31000 | K38: =IF($D$8=U3,X38,Y38) -> 31000 | L38: Sin Deducible | T38: =IF($P$13*0.2<F38,$P$13*0.2,F38) -> 30000 | U38: =IF($P$13*0.2<F38*$V$6,$P$13*0.2,F38*$V$6) -> 31000 | V38: =IF($P$13*0.2<G38,$P$13*0.2,G38) -> 31000 | W38: =IF($P$13*0.2<G38*$V$6,$P$13*0.2,G38*$V$6) -> 31000 | X38: =IF($P$13*0.2<H38,$P$13*0.2,H38) -> 31000 | Y38: =IF($P$13*0.2<H38*$V$6,$P$13*0.2,H38*$V$6) -> 31000
C39: Robo de instalaciones fijas, hasta el 20% de la Suma Asegurada de la Vivienda, máximo: | F39: 10000 | G39: 20000 | H39: 30000 | I39: =IF($D$8=U3,T39,U39) -> 10000 | J39: =IF($D$8=U3,V39,W39) -> 20000 | K39: =IF($D$8=U3,X39,Y39) -> 30000 | L39: =CONCATENATE(Hoja1!C8," ",Hoja1!D8," ",Hoja1!E8, ,Hoja1!F8) -> 15% del Monto Indemnizable, mínimo US$ 200 | T39: =IF($N$13*0.2<F39,$N$13*0.2,F39) -> 10000 | U39: =IF($N$13*0.2<F39*$V$6,$N$13*0.2,F39*$V$6) -> 30000 | V39: =IF($N$13*0.2<G39,$N$13*0.2,G39) -> 20000 | W39: =IF($N$13*0.2<G39*$V$6,$N$13*0.2,G39*$V$6) -> 30000 | X39: =IF($N$13*0.2<H39,$N$13*0.2,H39) -> 30000 | Y39: =IF($N$13*0.2<H39*$V$6,$N$13*0.2,H39*$V$6) -> 30000
C40: Gastos por emergencias médicas a terceros hasta US$ 1,000 por persona, y en agregado vigencia máximo: | F40: 1000 | G40: 2000 | H40: 3000 | I40: =IF($D$8=U3,T40,U40) -> 1000 | J40: =IF($D$8=U3,V40,W40) -> 2000 | K40: =IF($D$8=U3,X40,Y40) -> 3000 | L40: Sin Deducible | T40: =+F40 -> 1000 | U40: =+F40*V6 -> 4100 | V40: =+G40 -> 2000 | W40: =+G40*V6 -> 8200 | X40: =+H40 -> 3000 | Y40: =+H40*V6 -> 12300
C41: Responsabilidad Civil Patronal (frente al trabajador del hogar), por evento y en agregado vigencia hasta: | F41: 10000 | G41: 15000 | H41: 20000 | I41: =IF($D$8=U3,T41,U41) -> 10000 | J41: =IF($D$8=U3,V41,W41) -> 15000 | K41: =IF($D$8=U3,X41,Y41) -> 20000 | L41: Sin Deducible | T41: =+F41 -> 10000 | U41: =+F41*V6 -> 41000 | V41: =+G41 -> 15000 | W41: =+G41*V6 -> 61500 | X41: =+H41 -> 20000 | Y41: =+H41*V6 -> 82000
C42: Responsabilidad civil por posesión de mascotas por evento y en agregado vigencia, hasta: | F42: 1000 | G42: 2000 | H42: 3000 | I42: =IF($D$8=U3,T42,U42) -> 1000 | J42: =IF($D$8=U3,V42,W42) -> 2000 | K42: =IF($D$8=U3,X42,Y42) -> 3000 | L42: Sin Deducible | T42: =+F42 -> 1000 | U42: =+F42*V6 -> 4100 | V42: =+G42 -> 2000 | W42: =+G42*V6 -> 8200 | X42: =+H42 -> 3000 | Y42: =+H42*V6 -> 12300
C43: II. PROGRAMA FULL
C44: Robo de Bienes Contenidos en la Vivienda hasta: | F44: Hasta el 100% de la Suma Asegurada del Contenido | I44: =IF($O$13<V8,"No Aplica",$O$13) -> 5000 | J44: =IF($O$13<V8,"No Aplica",$O$13) -> 5000 | K44: =IF($O$13<V8,"No Aplica",$O$13) -> 5000 | L44: =IF(T46="No Aplica","No Aplica", Hoja1!B10) -> 15% del Monto Indemnizable, mínimo US$ 500
C46: Robo de Contenidos Especiales (joyas, alhajas, perlas, platería, relojes personales, obras de arte, pieles, instrumentos musicales y colecciones en general) dentro o fuera de los predios, con un límite por bien de US$1,000. La Suma Asegurada está limitada al 30% de la suma asegurada del Contenido, hasta: | F46: 3000 | G46: 5000 | H46: 15000 | I46: =IF($D$8=U3,T46,U46) -> 1500 | J46: =IF($D$8=U3,V46,W46) -> 1500 | K46: =IF($D$8=U3,X46,Y46) -> 1500 | L46: =IF(T46="No Aplica","No Aplica", Hoja1!B11) -> 15% del Monto Indemnizable, mínimo US$ 300 | T46: =IF($O$13<V8,"No Aplica",IF($O$13*0.3<F46,$O$13*0.3,F46)) -> 1500 | U46: =IF($O$13<V8,"No Aplica",IF($O$13*0.3<F46*$V$6,$O$13*0.3,F46*$V$6)) -> 1500 | V46: =IF($O$13<V8,"No Aplica",IF($O$13*0.3<G46,$O$13*0.3,G46)) -> 1500 | W46: =IF($O$13<V8,"No Aplica",IF($O$13*0.3<G46*$V$6,$O$13*0.3,G46*$V$6)) -> 1500 | X46: =IF($O$13<V8,"No Aplica",IF($O$13*0.3<H46,$O$13*0.3,H46)) -> 1500 | Y46: =IF($O$13<V8,"No Aplica",IF($O$13*0.3<H46*$V$6,$O$13*0.3,H46*$V$6)) -> 1500
C47: Robo de dinero en Efectivo dentro de la Vivienda, hasta: | F47: 500 | G47: 750 | H47: 1000 | I47: =IF($D$8=U3,T47,U47) -> 500 | J47: =IF($D$8=U3,V47,W47) -> 750 | K47: =IF($D$8=U3,X47,Y47) -> 1000 | L47: =IF(T47="No Aplica","No Aplica",Hoja1!B12) -> US$ 50 | T47: =IF($O$13<V8,"No Aplica",F47) -> 500 | U47: =IF($O$13<V8,"No Aplica",F47*$V$6) -> 2050 | V47: =IF($O$13<V8,"No Aplica",G47) -> 750 | W47: =IF($O$13<V8,"No Aplica",G47*$V$6) -> 3075 | X47: =IF($O$13<V8,"No Aplica",H47) -> 1000 | Y47: =IF($O$13<V8,"No Aplica",H47*$V$6) -> 4100
C48: Robo de dinero en tránsito solo por asalto, hasta: | F48: 500 | G48: 750 | H48: 1000 | I48: =IF($D$8=U3,T48,U48) -> 500 | J48: =IF($D$8=U3,V48,W48) -> 750 | K48: =IF($D$8=U3,X48,Y48) -> 1000 | L48: =IF(T48="No Aplica","No Aplica", Hoja1!B13) -> US$ 50 | T48: =IF(O13<V8,"No Aplica",F48) -> 500 | U48: =IF(O13<V8,"No Aplica",F48*$V$6) -> 2050 | V48: =IF($O$13<V8,"No Aplica",G48) -> 750 | W48: =IF($O$13<V8,"No Aplica",G48*$V$6) -> 3075 | X48: =IF($O$13<V8,"No Aplica",H48) -> 1000 | Y48: =IF($O$13<V8,"No Aplica",H48*$V$6) -> 4100
C49: Daños internos de equipos electrónicos y equipos eléctricos, hasta el 10% de la Suma Asegurada del Contenido, máximo: | F49: 3000 | G49: 4000 | H49: 5000 | I49: =IF($D$8=U3,T49,U49) -> 500 | J49: =IF($D$8=U3,V49,W49) -> 500 | K49: =IF($D$8=U3,X49,Y49) -> 500 | L49: =IF(T49="No Aplica","No Aplica", Hoja1!B14) -> 10% del Monto Indemnizable, mínimo US$ 50 | T49: =IF($O$13<V8,"No Aplica",IF($O$13*0.1<F49,$O$13*0.1,F49)) -> 500 | U49: =IF($O$13<V8,"No Aplica",IF($O$13*0.1<F49*$V$6,$O$13*0.1,F49*$V$6)) -> 500 | V49: =IF($O$13<V8,"No Aplica",IF($O$13*0.1<G49,$O$13*0.1,G49)) -> 500 | W49: =IF($O$13<V8,"No Aplica",IF($O$13*0.1<G49*$V$6,$O$13*0.1,G49*$V$6)) -> 500 | X49: =IF($O$13<V8,"No Aplica",IF($O$13*0.1<H49,$O$13*0.1,H49)) -> 500 | Y49: =IF($O$13<V8,"No Aplica",IF($O$13*0.1<H49*$V$6,$O$13*0.1,H49*$V$6)) -> 500
C50: Asistencia médica urgente por lesiones en un robo con un límite por persona de US$1,000 y en agregado vigencia máximo: | F50: 5000 | G50: 7500 | H50: 10000
I51: =IF($D$8=U3,T51,U51) -> 5000 | J51: =IF($D$8=U3,V51,W51) -> 7500 | K51: =IF($D$8=U3,X51,Y51) -> 10000 | L51: =IF(T51="No Aplica","No Aplica", Hoja1!B15) -> Sin deducible US$ | T51: =IF($O$13<V8,"No Aplica",F50) -> 5000 | U51: =IF($O$13<V8,"No Aplica",F50*$V$6) -> 20500 | V51: =IF($O$13<V8,"No Aplica",G50) -> 7500 | W51: =IF($O$13<V8,"No Aplica",G50*$V$6) -> 30750 | X51: =IF($O$13<V8,"No Aplica",H50) -> 10000 | Y51: =IF($O$13<V8,"No Aplica",H50*$V$6) -> 41000
C52: Alojamiento temporal por inhabilitación de la vivienda, con un límite mensual de US$ 1,000 y en agregado vigencia máximo: | F52: 3000 | G52: 5000 | H52: 10000 | I52: =IF(I51="No Aplica"," No Aplica",IF($D$8=U3,T52,U52)) -> 3000 | J52: =IF(I51="No Aplica"," No Aplica",IF($D$8=U3,V52,W52)) -> 5000 | K52: =IF(I51="No Aplica"," No Aplica",IF($D$8=U3,X52,Y52)) -> 10000 | L52: =IF(T52="No Aplica","No Aplica", Hoja1!B17) -> Sin deducible | T52: =IF($O$13<V8,"No Aplica",F52) -> 3000 | U52: =IF($O$13<V8,"No Aplica",F52*$V$6) -> 12300 | V52: =IF($O$13<V8,"No Aplica",G52) -> 5000 | W52: =IF($O$13<V8,"No Aplica",G52*$V$6) -> 20500 | X52: =IF($O$13<V8,"No Aplica",H52) -> 10000 | Y52: =IF($O$13<V8,"No Aplica",H52*$V$6) -> 41000
C53: Daños durante el traslado del contenido asegurado al alojamiento temporal, hasta el 50% de la Suma Asegurada del Contenido, máximo: | F53: 3000 | G53: 5000 | H53: 10000 | I53: =IF($D$8=U3,T53,U53) -> 2500 | J53: =IF($D$8=U3,V53,W53) -> 2500 | K53: =IF($D$8=U3,X53,Y53) -> 2500 | L53: =IF(T53="No Aplica","No Aplica", Hoja1!B18) -> 10% del Monto Indemnizable, mínimo US$ 50 | T53: =IF($O$13<V8,"No Aplica",IF($O$13*0.5<F53,$O$13*0.5,F53)) -> 2500 | U53: =IF($O$13<V8,"No Aplica",IF($O$13*0.5<F53*$V$6,$O$13*0.5,F53*$V$6)) -> 2500 | V53: =IF($O$13<V8,"No Aplica",IF($O$13*0.5<G53,$O$13*0.5,G53)) -> 2500 | W53: =IF($O$13<V8,"No Aplica",IF($O$13*0.5<G53*$V$6,$O$13*0.5,G53*$V$6)) -> 2500 | X53: =IF($O$13<V8,"No Aplica",IF($O$13*0.5<H53,$O$13*0.5,H53)) -> 2500 | Y53: =IF($O$13<V8,"No Aplica",IF($O$13*0.5<H53*$V$6,$O$13*0.5,H53*$V$6)) -> 2500
C54: Perdida de alimentos en equipos de refrigeración, hasta el 5% de la Suma Asegurada del Contenido, máximo: | F54: 750 | G54: 1000 | H54: 1500 | I54: =IF($D$8=U3,T54,U54) -> 250 | J54: =IF($D$8=U3,V54,W54) -> 250 | K54: =IF($D$8=U3,X54,Y54) -> 250 | L54: =IF(T54="No Aplica","No Aplica", Hoja1!B19) -> 10% del Monto Indemnizable, mínimo US$ 50 | T54: =IF($O$13<V8,"No Aplica",IF($O$13*0.05<F54,$O$13*0.05,F54)) -> 250 | U54: =IF($O$13<V8,"No Aplica",IF($O$13*0.05<F54*$V$6,$O$13*0.05,F54*$V$6)) -> 250 | V54: =IF($O$13<V8,"No Aplica",IF($O$13*0.05<G54,$O$13*0.05,G54)) -> 250 | W54: =IF($O$13<V8,"No Aplica",IF($O$13*0.05<G54*$V$6,$O$13*0.05,G54*$V$6)) -> 250 | X54: =IF($O$13<V8,"No Aplica",IF($O$13*0.05<H54,$O$13*0.05,H54)) -> 250 | Y54: =IF($O$13<V8,"No Aplica",IF($O$13*0.05<H54*$V$6,$O$13*0.05,H54*$V$6)) -> 250
C55: Pérdida de equipaje por viaje dentro o fuera del país, hasta el 10% de la Suma Asegurada del Contenido, máximo: | F55: 750 | G55: 1000 | H55: 1500 | I55: =IF($D$8=U3,T55,U55) -> 500 | J55: =IF($D$8=U3,V55,W55) -> 500 | K55: =IF($D$8=U3,X55,Y55) -> 500 | L55: =IF(T55="No Aplica","No Aplica", Hoja1!B20) -> 10% del Monto Indemnizable, mínimo US$ 50 | T55: =IF($O$13<V8,"No Aplica",IF($O$13*0.1<F55,$O$13*0.1,F55)) -> 500 | U55: =IF($O$13<V8,"No Aplica",IF($O$13*0.1<F55*$V$6,$O$13*0.1,F55*$V$6)) -> 500 | V55: =IF($O$13<V8,"No Aplica",IF($O$13*0.1<G55,$O$13*0.1,G55)) -> 500 | W55: =IF($O$13<V8,"No Aplica",IF($O$13*0.1<G55*$V$6,$O$13*0.1,G55*$V$6)) -> 500 | X55: =IF($O$13<V8,"No Aplica",IF($O$13*0.1<H55,$O$13*0.1,H55)) -> 500 | Y55: =IF($O$13<V8,"No Aplica",IF($O$13*0.1<H55*$V$6,$O$13*0.1,H55*$V$6)) -> 500
C56: Deshonestidad o apropiación ilícita de trabajadores del hogar, por evento y en agregado vigencia hasta: | F56: 750 | G56: 1000 | H56: 2000 | I56: =IF($D$8=U3,T56,U56) -> 750 | J56: =IF($D$8=U3,V56,W56) -> 1000 | K56: =IF($D$8=U3,X56,Y56) -> 2000 | L56: =IF(T56="No Aplica","No Aplica", Hoja1!B21) -> 10% del Monto Indemnizable, mínimo US$ 200 | T56: =IF($O$13<V8,"No Aplica",F56) -> 750 | U56: =IF($O$13<V8,"No Aplica",(F56*$V$6)) -> 3075 | V56: =IF($O$13<V8,"No Aplica",G56) -> 1000 | W56: =IF($O$13<V8,"No Aplica",(G56*$V$6)) -> 4100 | X56: =IF($O$13<V8,"No Aplica",H56) -> 2000 | Y56: =IF($O$13<V8,"No Aplica",(H56*$V$6)) -> 8200
C57: Compensación por Muerte accidental del Asegurado o de su cónyuge o conviviente | F57: 7500 | G57: 10000 | H57: 20000 | I57: =IF($D$8=U3,T57,U57) -> 7500 | J57: =IF($D$8=U3,V57,W57) -> 10000 | K57: =IF($D$8=U3,X57,Y57) -> 20000 | L57: =IF(T57="No Aplica","No Aplica", Hoja1!B22) -> Sin deducible | T57: =IF($O$13<V8,"No Aplica",F57) -> 7500 | U57: =IF($O$13<V8,"No Aplica",(F57*$V$6)) -> 30750 | V57: =IF($O$13<V8,"No Aplica",G57) -> 10000 | W57: =IF($O$13<V8,"No Aplica",(G57*$V$6)) -> 41000 | X57: =IF($O$13<V8,"No Aplica",H57) -> 20000 | Y57: =IF($O$13<V8,"No Aplica",(H57*$V$6)) -> 82000
C58: Gastos de Curación de empleados (Trabajadores del hogar), hasta US$ 1,000 por evento, y en agregado vigencia hasta: | F58: 1000 | G58: 2000 | H58: 3000 | I58: =IF($D$8=U3,T58,U58) -> 1000 | J58: =IF($D$8=U3,V58,W58) -> 2000 | K58: =IF($D$8=U3,X58,Y58) -> 3000 | L58: =IF(T58="No Aplica","No Aplica", Hoja1!B23) -> Sin deducible | T58: =IF($O$13<V8,"No Aplica",F58) -> 1000 | U58: =IF($O$13<V8,"No Aplica",(F58*$V$6)) -> 4100 | V58: =IF($O$13<V8,"No Aplica",G58) -> 2000 | W58: =IF($O$13<V8,"No Aplica",(G58*$V$6)) -> 8200 | X58: =IF($O$13<V8,"No Aplica",H58) -> 3000 | Y58: =IF($O$13<V8,"No Aplica",(H58*$V$6)) -> 12300
C59: Gastos de sepelio para el asegurado o su cónyuge o hijos, hasta | F59: 1000 | G59: 2000 | H59: 3000 | I59: =IF($D$8=U3,T59,U59) -> 1000 | J59: =IF($D$8=U3,V59,W59) -> 2000 | K59: =IF($D$8=U3,X59,Y59) -> 3000 | L59: =IF(T59="No Aplica","No Aplica", Hoja1!B24) -> Sin deducible | T59: =IF(O13<V8,"No Aplica",F59) -> 1000 | U59: =IF(O13<V8,"No Aplica",(F59*$V$6)) -> 4100 | V59: =IF($O$13<V8,"No Aplica",G59) -> 2000 | W59: =IF($O$13<V8,"No Aplica",(G59*$V$6)) -> 8200 | X59: =IF($O$13<V8,"No Aplica",H59) -> 3000 | Y59: =IF($O$13<V8,"No Aplica",(H59*$V$6)) -> 12300
C60: Gastos de sepelio para el trabajador del hogar, hasta | F60: 1000 | G60: 2000 | H60: 3000 | I60: =IF($D$8=U3,T60,U60) -> 1000 | J60: =IF($D$8=U3,V60,W60) -> 2000 | K60: =IF($D$8=U3,X60,Y60) -> 3000 | L60: =IF(T60="No Aplica","No Aplica", Hoja1!B25) -> Sin deducible | T60: =IF(O13<V8,"No Aplica",F60) -> 1000 | U60: =IF(O13<V8,"No Aplica",(F60*$V$6)) -> 4100 | V60: =IF($O$13<V8,"No Aplica",G60) -> 2000 | W60: =IF($O$13<V8,"No Aplica",(G60*$V$6)) -> 8200 | X60: =IF($O$13<V8,"No Aplica",H60) -> 3000 | Y60: =IF($O$13<V8,"No Aplica",(H60*$V$6)) -> 12300
C62: Claúsulas y Condiciones Especiales
C63: - Póliza de Seguro Domiciliario | J63: - 013 CL Pérdida de alimentos en equipos de refrigeración
C64: - 035 CL Robo de instalaciones fijas | J64: - 014 CL Gastos por emergencias médicas a terceros
C65: - 004 CL Muerte accidental del Ase. Cony. o Conv. | J65: - 015 CL Responsabilidad civil patronal (frente al trabajador del hogar)
C66: - 005 CL Gastos de curacion de empleados (trab. del hogar) | J66: - 016 CL Pérdida de equipaje por viaje dentro o fuera del país
C67: - 006 CL Daños internos de eq. electronicos y eq. electricos | J67: - 017 CL Deshonestidad o apropiación ilícita de trabajadores del hogar
C68: - 022 CL Robo de contenidos especiales dentro o fuera de los predios | J68: - 019 CL Gastos de sepelio para el Asegurado o su conyuge o hijos
C69: - 008 CL Dinero en tránsito solo por asalto | J69: - 020 CL Gastos de sepelio para el trabajador del hogar
C70: - 009 CL Dinero en efectivo dentro de la vivienda | J70: - 021 CL Responsabilidad civil por posesión de mascotas
C71: - 010 CL Asistencia médica urgente por lesiones en un robo | J71: - 027 CL Gastos Extras
C72: - 011 CL Alojamiento temporal por inhabilitación de la vivienda | J72: - 038 CL Reemplazo
C73: - 012 CL Daños durante el traslado del contenido asegurado al alojamiento temporal | J73: =IF(I13=AB3," - CE Valor Comercial"," ") -> - CE Valor Comercial
C74: =IF(D7=AC3," - Condiciones Especiales: Rehabilitacion Automática de la Suma Asegurada (excepto para coberturas con suma asegurada en agregado vigencia); Propiedades fuera de control del asegurado; Reposición; Errores y omisiones"," ") -> 
C75: - Las Sumas Aseguradas son límites únicos para la vigencia del seguro y se encuentran sujetas a los limites por evento y en agregado vigencia indicados en cada cobertura.
C77: Recomendaciones
C78: - Tener instalados interruptores de tipo termomagnético o de tipo diferencial. No usar llaves de cuchilla ni conductores mellizos. - Mantener el cableado eléctrico entubado o empotrado, no debe existir presencia de cables sueltos. - Contar con un (01) extintor de PQS de 2 kgs o más de capacidad.
C80: Beneficios
C81: Linea Positiva Salud
C82: - Consejería médica gratuita vía telefónica
C83: Asistencias Domiciliarias
C85: Asistencia | E85: Copago | I85: Sublimite * | J85: Eventos
C86: Cerrajeria | E86: - | I86: 450 | J86: 3 eventos
C87: Gasfiteria | E87: - | I87: 850 | J87: 3 eventos
C88: Electricidad | E88: - | I88: 850 | J88: 2 eventos
C89: Vidrieria | E89: - | I89: 850 | J89: 2 eventos
C90: Housekeeping | E90: 30 | I90: 350 | J90: 2 eventos
C91: Ambulancia por emergencia médica o accidental | E91: - | I91: 1500 | J91: 3 eventos
C92: Consulta médica a domicilio | E92: 20 | I92: 400 | J92: 3 eventos
C93: Consulta médica por teléfono | E93: - | I93: Sin límite
C94: Consulta médica para trabajadoras de hogar | E94: 30 | I94: 400 | J94: 3 eventos
C95: Mensajería en recojo y paquetes (hasta 5 kilos) | E95: - | I95: 600 | J95: 2 eventos
C96: Valet Parking | E96: - | I96: Sin límite | J96: 2 eventos
C97: Mozo a domicilio | E97: - | I97: 1 mozo | J97: 2 eventos
C98: Orientación Veterinaria Telefónica | E98: - | I98: Sin límite | J98: -
C99: Asesoría Legal | E99: - | I99: Sin límite | J99: -
C100: Servicios de referencia y coordinación | E100: - | I100: Sin límite | J100: -
C101: Mantenimiento de Preventivo de Línea Blanca | E101: - | I101: 250 | J101: 2 eventos
C102: * El Sublimite señalado por cada asistencia corresponde al importe máximo del servicio brindado dentro de la vigencia de la póliza. Las asistencias están disponibles en algunas ciudades, sujetos al tipo de servicio requerido y al radio de acción. Se aplican restricciones por zona y horario.
C104: Exclusiones
C105: - Viviendas en cuyo interior se efectúen labores comerciales, industriales o de servicios
C106: - Viviendas ubicadas a una distancia menor a 500 metros del mar
C107: - Viviendas, casas y departamentos cuyo material de construcción predomínate NO sea ladrillo, cemento y fierro
C108: - Viviendas ubicadas en asentamientos informales o asentamientos humanos o en lotes no urbanizados o en lotes rurales o en condición de infravivienda
C110: Importante
C111: - El Asegurado deberá completar y firmar la Solicitud de Seguro
C115: TASA NETA ANUAL COBERTURA PRINCIPAL (Aplicado al Valor Declarado de Vivienda + Contenido asegurada) | I115: 0.00165 | J115: 0.00165 | K115: 0.00165
C116: TASA NETA ANUAL COB. ADICIONALES (Aplicado al Valor Declarado del contenido Asegurado | I116: 0.007 | J116: 0.01 | K116: 0.012
I117: Dólares ( US$ ) | J117: Dólares ( US$ ) | K117: Dólares ( US$ ) | M117: Sol ( S/ ) | N117: Sol ( S/ ) | O117: Sol ( S/ )
C118: PRIMA NETA MINIMA POR PLAN | I118: 100 | J118: 120 | K118: 130 | M118: =I118*$V$6 -> 410 | N118: =J118*$V$6 -> 492 | O118: =K118*$V$6 -> 533
C119: DERECHO DE EMISION MINIMO | I119: 5 | J119: =I119 -> 5 | K119: =I119 -> 5 | M119: 18 | N119: =M119 -> 18 | O119: =M119 -> 18
C120: PRIMA COMERCIAL + IGV MINIMA | I120: =(I118+I119)*1.18 -> 123.9 | J120: =(J118+J119)*1.18 -> 147.5 | K120: 159.3 | M120: =(M118+M119)*1.18 -> 505.04 | N120: =(N118+N119)*1.18 -> 601.8 | O120: =(O118+O119)*1.18 -> 650.18
C121: PRIMA NETA COB PRINCIPAL EDIFICIO | I121: =I115*N13 -> 247.5 | J121: =J115*N13 -> 247.5 | K121: =K115*N13 -> 247.5 | M121: =I121 -> 247.5 | N121: =J121 -> 247.5 | O121: 247.5
C122: PRIMA NETA COB PRINCIPAL CONTENIDO | I122: =I115*O13 -> 8.25 | J122: =J115*O13 -> 8.25 | K122: =K115*O13 -> 8.25 | M122: 8.25 | N122: 8.25 | O122: 8.25
C123: PRIMA NETA COB ADICIONAL CONTENIDO | I123: =I116*O13 -> 35 | J123: =J116*O13 -> 50 | K123: =K116*O13 -> 60 | M123: 35 | N123: 50 | O123: 60
C124: PRIMA NETA APLICADA | I124: =IF(SUM(I121:I123)<I118,I118,SUM(I121:I123)) -> 290.75 | J124: =IF(SUM(J121:J123)<J118,J118,SUM(J121:J123)) -> 305.75 | K124: =IF(SUM(K121:K123)<K118,K118,SUM(K121:K123)) -> 315.75 | M124: =IF(SUM(M121:M123)<M118,M118,SUM(M121:M123)) -> 410 | N124: =IF(SUM(N121:N123)<N118,N118,SUM(N121:N123)) -> 492 | O124: =IF(SUM(O121:O123)<O118,O118,SUM(O121:O123)) -> 533
C125: DERECHO DE EMISION | E125: 0.03 | I125: =I124*$E$125 -> 8.7225 | J125: =J124*$E$125 -> 9.1725 | K125: 9.4725 | M125: =I125 -> 8.7225 | N125: =J125 -> 9.1725 | O125: =K125 -> 9.4725
C126: PRIMA COMERCIAL | I126: =I124+IF(I119<I125,I125,I119) -> 299.4725 | J126: =J124+IF(J119<J125,J125,J119) -> 314.9225 | K126: =K124+IF(K119<K125,K125,K119) -> 325.2225 | M126: =M124+IF(M119<M125,M125,M119) -> 428 | N126: =N124+IF(N119<N125,N125,N119) -> 510 | O126: =O124+IF(O119<O125,O125,O119) -> 551
C127: PRIMA COMERCIAL + IGV | I127: =I126*1.18 -> 353.37755 | J127: =J126*1.18 -> 371.60855 | K127: =K126*1.18 -> 383.76255 | M127: =M126*1.18 -> 505.04 | N127: =N126*1.18 -> 601.8 | O127: 650.18
C128: PRIMA COMERCIAL APLICADA | I128: =IF(N13>V8,I126,"No Aplica") -> 299.4725 | J128: =IF(AND(N13>V8,O13>V8),J126,"No Aplica") -> 314.9225 | K128: =IF(AND(N13>V8,O13>V8),K126,"No Aplica") -> 325.2225 | M128: =IF(N13>V8,M126,"No Aplica") -> 428 | N128: =IF(AND(N13>V8,O13>V8),N126,"No Aplica") -> 510 | O128: =IF(AND(N13>V8,O13>V8),O126,"No Aplica") -> 551
C130: DESCUENTO | D130: 0
D131: 0.05
D132: 0.1
D133: 0.15
D134: 0.2

Sheet CasaMAR
C2: COTIZACIÓN DE SEGURO DOMICILIARIO CASAMARV7.1
T3: SI | U3: Dólares ( US$ ) | V3: US$ | W3: A. Programa Básico | AA3: Concreto Armado | AB3: Departamento
C4: CONTRATANTE | T4: NO | U4: Sol ( S/ ) | V4: S/ | W4: B. Programa Básico + Programa Full | AA4: Ladrillo y Cemento | AB4: Casa | AD4: Debe asegurar edificio | AF4: SA Edificio minimo | AG4: 200
C5: ASEGURADO | AA5: Estructura de Acero | AD5: La cotización excede el limite permitido
C6: CORREDOR | G6: Oficina | K6: Ejecutivo Comercial | U6: Tipo de Cambio | V6: =CasaPLUS!V6 -> 4.1 | AA6: Madera y/o Adobe y/o quincha | AD6: Debe asegurar contenido | AF6: SA contenido minimo | AG6: 999
C7: ENDOSATARIO | D7: SI | E7: Nombre del Endosatario | U7: =CasaPLUS!U10 -> limite SA | V7: =CasaPLUS!V10 -> 1500000
C8: MONEDA | D8: Dólares ( US$ ) | E8: Fecha de Cotización | G8: =TODAY() -> 2021-08-17 | I8: Validez de la cotización | K8: 15 días | L8: Vigencia del seguro | N8: 1 Año
C9: COBERTURAS SOLICITADAS | D9: B. Programa Básico + Programa Full
T10: https://exceltotal.com/ocultar-datos-en-excel-con-formato-condicional/
C11: DATOS SBS
C12: Ubicación del riesgo | G12: Tipo de Vivienda | I12: Tipo de Estructura | J12: Año de Construcción | K12: Nro. de Pisos | L12: Nro. de Sótanos | M12: Valores Declarados | T12: http://www.compartir-tecnologias.es/ocultar-mostrar-filas-autoamticamente-pro-medio-formula-o-funcion-ayuda-204308052.html
M13: Edificio | N13: Contenido | O13: Total | U13: pr
M14: 90000 | N14: 5000 | O14: =SUM(M14:N14) -> 95000
D15: =+IF(D9=W3,1,0) -> 0
E16: Moneda | F16: Prima | G16: =IF(OR(G17=AD4,G18=AD5),"Observaciones"," ") ->  | L16: =IF(E19>10%,"Ver con Area Técnica LP"," ") -> 
C17: Prima Comercial | E17: =IF($D$8="Dólares ( US$ )","US$","S/") -> US$ | F17: =IF(D8=U3,K127,L127) -> 227.115 | G17: =IF(M14<AG4,AD4," ") -> 
C18: Prima Comercial + IGV Anual | E18: =IF($D$8="Dólares ( US$ )","US$","S/") -> US$ | F18: =IFERROR(F17*1.18,"No Aplica") -> 267.9957 | G18: =IF(AND(D8=U3,K126="SI"),AD5,(IF(AND(D8=U4,L126="SI"),AD5," "))) -> 
C19: Descuento | E19: 0 | G19: =IF(N14<AG6,AD6," ") -> 
C20: Prima Comercial + IGV Anual | E20: =IF($D$8="Dólares ( US$ )","US$","S/") -> US$ | F20: =IFERROR(F18*(1-E19),"No Aplica") -> 267.9957
C22: Coberturas Principales | H22: Suma Asegurada Maxima | I22: Suma Asegurada | J22: Deducibles
I23: =+D8 -> Dólares ( US$ ) | S23: SA Dolares | T23: SA Soles
C24: I. PROGRAMA BASICO
C25: Este seguro cubre la destrucción o daño físico directo de la vivienda y su contenido como consecuencia directa de | U25: prima comercial minima
C26: Incendio y/o rayo, explosión, daños por agua, lluvia e inundación, caída de aeronaves, impacto de vehículos terrestres, daños por humo. | H26: Hasta el 100% de la Suma Asegurada (SA) de la Vivienda + Contenido | I26: =+O14 -> 95000 | J26: =Hoja1!B30 -> 10% del Monto Indemnizable mínimo US$ 500 | S26: =K123*1.18 -> 123.9 | T26: =L123*1.18 -> 505.04 | U26: prima comercial + IGV minima
C27: Terremoto, temblor, erupción volcánica, maremoto (Tsunami), salida de mar, marejada, oleaje. | I27: =I26 -> 95000 | J27: =Hoja1!B31 -> 1% de la Suma Asegurada de la Vivienda + Contenido, minimo US$ 2000,lo que resulte mayor
C28: Huelga y conmoción civil, daño malicioso, vandalismo y/o terrorismo, limite agregado vigencia hasta: | I28: =I27 -> 95000 | J28: =Hoja1!B32 -> 5% del monto indemnizable mínimo US$ 500
C32: Rotura de vidrios, espejos y unidades sanitarias, hasta el 10% de la Suma Asegurada de la Vivienda, máximo: | H32: 15000 | I32: =IF($D$8="Dólares ( US$ )",S32,T32) -> 9000 | J32: =Hoja1!B36 -> 10% del Monto Indemnizable, mínimo US$ 30 | S32: =IF(M14*0.1<H32,M14*0.1,H32) -> 9000 | T32: =IF(M14*0.1<H32*$V$6,M14*0.1,H32*$V$6) -> 9000
C33: Gastos Extras, hasta el 20% de la Suma Asegurada de la Vivienda + Contenido, máximo: | H33: 30000 | I33: =IF($D$8="Dólares ( US$ )",S33,T33) -> 9500 | J33: El de la cobertura afectada | S33: =IF(O14*0.1<H33,O14*0.1,H33) -> 9500 | T33: =IF(O14*0.1<H33*$V$6,O14*0.1,H33*$V$6) -> 9500
C34: Gastos de remoción de escombros, hasta el 10% de la Suma Asegurada de la Vivienda + Contenido, máximo: | H34: 30000 | I34: =IF($D$8="Dólares ( US$ )",S34,T34) -> 9500 | J34: =Hoja1!B37 -> Sin Deducible | S34: =IF(O14*0.1<H34,O14*0.1,H34) -> 9500 | T34: =IF(O14*0.1<H34*$V$6,O14*0.1,H34*$V$6) -> 9500
C35: Gastos de extinción y contención del siniestro, hasta el 10% de la Suma Asegurada de la Vivienda + Contenido, máximo: | H35: 30000 | I35: =IF($D$8="Dólares ( US$ )",S35,T35) -> 9500 | J35: =Hoja1!B38 -> Sin Deducible | S35: =IF(O14*0.1<H35,O14*0.1,H35) -> 9500 | T35: =IF(O14*0.1<H35*$V$6,O14*0.1,H35*$V$6) -> 9500
C36: Responsabilidad civil Extracontractual Frente a Terceros limite en agregado vigencia, hasta: | H36: 100000 | I36: =IF(I48=0,0,IF($D$8="Dólares ( US$ )",S36,T36)) -> 100000 | J36: =Hoja1!B41 -> US$ 200 | S36: =+H36 -> 100000 | T36: =+H36*V6 -> 410000
C37: Coberturas Adicionales
C38: Responsabilidad Civil
C39: 1.2.4 - Responsabilidad Civil por los daños personales que ocasione la posesión de mascotas, hasta: | H39: 30000 | I39: =IF($D$8="Dólares ( US$ )",S39,T39) -> 30000 | J39: Sin Deducible | S39: =+H39 -> 30000 | T39: =+H39*V6 -> 123000
C40: II. PROGRAMA FULL
C41: Robo
C42: Robo de Bienes Contenidos en la Vivienda hasta | H42: Hasta el 100% de la Suma Asegurada del Contenido | I42: =IF($N$14<1,"No Aplica",N14) -> 5000 | J42: =IF(I42="No Aplica", "No Aplica",Hoja1!B47) -> Eventos ocurridos entre Diciembre y Abril: 10% del Monto Indemnizable, mínimo US$ 500
J43: =IF(I42="No Aplica"," ",Hoja1!B48) -> Eventos ocurridos entre Mayo a Noviembre: 10% del Monto Indemnizable, mínimo US$ 2500
C44: 2.1.2 Contenidos Especiales (joyas, alhajas, perlas, platería, relojes personales, obras de arte, pieles, instrumentos musicales y colecciones en general) que se encuentren dentro de la vivienda y con un límite por bien de US$1,000. La Suma Asegurada está limitada al 30% de la suma asegurada del Contenido, máximo: | H44: 15000 | I44: =IF($D$8="Dólares ( US$ )",S44,T44) -> 1500 | J44: 10% del Monto Indemnizable, mínimo | N44: =IF($D$8="Dólares ( US$ )","US$","S/") -> US$ | O44: =IF($D$8="Dólares ( US$ )",U44,(U44*$V$6)) -> 0 | S44: =IF(N14*0.3<H44,N14*0.3,H44) -> 1500 | T44: =IF(N14*0.3<H44*$V$6,N14*0.3,H44*$V$6) -> 1500
C45: Robo de Dinero en efectivo dentro de la vivienda, hasta US$ 1,000 por evento y en agregado vigencia máximo: | H45: 3000 | I45: =IF($D$8="Dólares ( US$ )",S45,T45) -> 3000 | J45: =IF(I45="No Aplica","No Aplica",Hoja1!B50) -> US$ 50 | S45: =IF($N$14<1,"No Aplica",H45) -> 3000 | T45: =IF($N$14<1,"No Aplica",H45*$V$6) -> 12300
C46: 2.1.4 - Dinero en Tránsito solo por Asalto, maximo | H46: 2000 | I46: =IF($D$8="Dólares ( US$ )",S46,T46) -> 2000 | J46: Sin Deducible | S46: =IF(N14=0,0,H46) -> 2000 | T46: =IF(N14=0,0,H46*$V$6) -> 8200
C47: Especiales
C48: Robo de Instalaciones fijas, hasta el 20% de la Suma Asegurada de la Vivienda máximo | H48: 10000 | I48: =IF($D$8="Dólares ( US$ )",S48,T48) -> 10000 | J48: =Hoja1!B39 -> 15% del Monto Indemnizable, mínimo US$ 200 | S48: =IF(M14*0.2<H48,M14*0.2,H48) -> 10000 | T48: =IF(M14*0.2<H48*$V$6,M14*0.2,H48*$V$6) -> 18000
C49: Responsabilidad Civil Patronal (frente al trabajador del hogar), por evento y en el agregado vigencia hasta: | H49: 20000 | I49: =IF(I48=0,0,IF($D$8="Dólares ( US$ )",S49,T49)) -> 20000 | J49: =Hoja1!B43 -> Sin Deducible | S49: =+H49 -> 20000 | T49: =+H49*V6 -> 82000
C50: Gastos por emergencias médicas de terceros, hasta US$ 1,000 por persona, y en agregado vigencia máximo: | H50: 3000 | I50: =IF(I48=0,0,IF($D$8="Dólares ( US$ )",S50,T50)) -> 3000 | J50: =Hoja1!B42 -> Sin Deducible | S50: =+H50 -> 3000 | T50: =+H50*V6 -> 12300
C51: Daños internos de equipos electrónicos y equipos eléctricos, hasta el 10% de la Suma Asegurada del Contenido, máximo: | H51: 5000 | I51: =IF($D$8="Dólares ( US$ )",S51,T51) -> 500 | J51: =IF(I51="No Aplica","No Aplica",Hoja1!B53) -> 10% del Monto Indemnizable, mínimo US$ 50 | S51: =IF($N$14<1,"No Aplica",IF(N14*0.1<H51,N14*0.1,H51)) -> 500 | T51: =IF($N$14<1,"No Aplica",IF(N14*0.1<H51*$V$6,N14*0.1,H51*$V$6)) -> 500
C52: Asistencia médica urgente por lesiones en un robo con un límite por persona de US$1,000 y en la vigencia hasta: | H52: 5000
I53: =IF($D$8="Dólares ( US$ )",S53,T53) -> 5000 | J53: =IF(I53="No Aplica","No Aplica",Hoja1!B54) -> Sin Deducible | S53: =IF($N$14<1,"No Aplica",H52) -> 5000 | T53: =IF($N$14<1,"No Aplica",H52*$V$6) -> 20500
C54: Alojamiento temporal por inhabilitación de la vivienda, con un límite mensual de US$ 1,000 y en la vigencia hasta: | H54: 3000 | I54: =IF(I48=0,0,IF($D$8="Dólares ( US$ )",S54,T54)) -> 3000 | J54: =IF(I54="No Aplica","No Aplica",Hoja1!B56) -> Sin Deducible | S54: =IF($N$14<1,"No Aplica",H54) -> 3000 | T54: =IF($N$14<1,"No Aplica",H54*$V$6) -> 12300
C55: Daños durante el traslado del contenido asegurado al alojamiento temporal, hasta el 50% de la Suma Asegurada del Contenido, máximo: | H55: 7500 | I55: =IF($D$8="Dólares ( US$ )",S55,T55) -> 2500 | J55: =IF(I55="No Aplica","No Aplica",Hoja1!B57) -> 10% del Monto Indemnizable, mínimo US$ 50 | S55: =IF($N$14<1,"No Aplica",IF(N14*0.5<H55,N14*0.5,H55)) -> 2500 | T55: =IF($N$14<1,"No Aplica",IF(N14*0.5<H55*$V$6,N14*0.5,H55*$V$6)) -> 2500
C56: Perdida de alimentos en equipos de refrigeración, hasta el 5% de la Suma Asegurada del Contenido, máximo: | H56: 1500 | I56: =IF($D$8="Dólares ( US$ )",S56,T56) -> 250 | J56: =IF(I56="No Aplica","No Aplica",Hoja1!B58) -> 10% del Monto Indemnizable, mínimo US$ 50 | S56: =IF($N$14<1,"No Aplica",IF(N14*0.05<H56,N14*0.05,H56)) -> 250 | T56: =IF($N$14<1,"No Aplica",IF(N14*0.05<H56*$V$6,N14*0.05,H56*$V$6)) -> 250
C57: 2.2.6 Pérdida de equipaje y/o de los bienes portados por el Asegurado y/o cónyuge y/o hijos en caso de viaje dentro o fuera del país, hasta el 10% de la Suma Asegurada del Contenido, máximo: | H57: 5000 | I57: =IF($D$8="Dólares ( US$ )",S57,T57) -> 500 | J57: Sin Deducible | S57: =IF(N14*0.1<H57,N14*0.1,H57) -> 500 | T57: =IF(N14*0.1<H57*$V$6,N14*0.1,H57*$V$6) -> 500
C58: Deshonestidad o apropiación ilícita de trabajadores del hogar, limite en agregado vigencia hasta: | H58: 1500 | I58: =IF($D$8="Dólares ( US$ )",S58,T58) -> 1500 | J58: =IF(I58="No Aplica","No Aplica",Hoja1!B60) -> 10% del Monto Indemnizable, mínimo US$ 200 | S58: =IF($N$14<1,"No Aplica",H58) -> 1500 | T58: =IF($N$14<1,"No Aplica",(H58*$V$6)) -> 6150
C59: Accidentes Personales
C60: Compensación por Muerte accidental del Asegurado o de su cónyuge o conviviente | H60: 10000 | I60: =IF($D$8="Dólares ( US$ )",S60,T60) -> 10000 | J60: =IF(I60="No Aplica","No Aplica",Hoja1!B62) -> Sin Deducible | S60: =IF($N$14<1,"No Aplica",H60) -> 10000 | T60: =IF($N$14<1,"No Aplica",(H60*$V$6)) -> 41000
C61: Gastos de Curación de empleados (Trabajadores del hogar), hasta US$ 1,000 por evento, maximo: | H61: 3000 | I61: =IF($D$8="Dólares ( US$ )",S61,T61) -> 3000 | J61: =IF(I61="No Aplica","No Aplica",Hoja1!B63) -> Sin Deducible | S61: =IF($N$14<1,"No Aplica",H61) -> 3000 | T61: =IF($N$14<1,"No Aplica",(H61*$V$6)) -> 12300
C62: 2.3.3 Gastos de Sepelio del Asegurado y/o conyuge y/o hijos | H62: 3000 | I62: =IF($D$8="Dólares ( US$ )",S62,T62) -> 3000 | J62: Sin Deducible | S62: =IF(N14=0,0,H62) -> 3000 | T62: =IF(N14=0,0,(H62*$V$6)) -> 12300
C63: 2.3.4 Gastos de Sepelio por muerte del trabajador del hogar | H63: 3000 | I63: =IF($D$8="Dólares ( US$ )",S63,T63) -> 3000 | J63: Sin Deducible | S63: =IF(N14=0,0,H63) -> 3000 | T63: =IF(N14=0,0,(H63*$V$6)) -> 12300
C65: Claúsulas y Condiciones Especiales
C66: - POLIZA DE SEGURO DOMICILIARIO | J66: - 011 CL Alojamiento temporal por inhabilitación de la vivienda
C67: - 015 CL Responsabilidad civil patronal (frente al trabajador del hogar) | J67: - 010 CL Asistencia médica urgente por lesiones en un robo
C68: - 012 CL Daños durante el traslado del contenido asegurado al alojamiento temporal | J68: - 006 CL Daños internos de eq. electronicos y eq. electricos
C69: - 017 CL Deshonestidad o apropiación ilícita de trabajadores del hogar | J69: - 004 CL Muerte accidental del Ase. Cony. o Conv.
C70: - 035 CL Robo de instalaciones fijas | J70: - 009 CL Dinero en efectivo dentro de la vivienda
C71: - 013 CL Pérdida de alimentos en equipos de refrigeración | J71: - 014 CL Gastos por emergencias médicas a terceros
C72: - 005 CL Gastos de curacion de empleados (trab. del hogar) | J72: - 027 CL Gastos Extras
C73: =IF(G14=AB3," - CE Valor Comercial"," ") -> 
C74: - Las Sumas Aseguradas son límites únicos para la vigencia del seguro y se encuentran sujetas a los limites por evento y agregado vigencia indicados en cada cobertura.
C75: =IF(D7=T3," - Condiciones Especiales: Rehabilitacion Automática de la Suma Asegurada (excepto para coberturas con suma asegurada en agregado vigencia); Propiedades fuera de control del asegurado; Reposición; Errores y omisiones"," ") -> - Condiciones Especiales: Rehabilitacion Automática de la Suma Asegurada (excepto para coberturas con suma asegurada en agregado vigencia); Propiedades fuera de control del asegurado; Reposición; Errores y omisiones
C77: Recomendaciones
C78: - Tener instalados interruptores de tipo termomagnético o de tipo diferencial. No usar llaves de cuchilla ni conductores mellizos. - Mantener el cableado eléctrico entubado o empotrado, no debe existir presencia de cables sueltos. - Contar con un (01) extintor de PQS de 2 kgs o más de capacidad.
C80: Beneficios
C81: Linea Positiva Salud
C82: - Consejería médica gratuita vía telefónica
C83: Asistencias Domiciliarias
C85: Asistencia | E85: Copago | F85: Sublimite * | G85: Eventos | H85: =CasaPLUS!I85 -> Sublimite *
C86: Cerrajeria | E86: - | F86: 450 | G86: 3 eventos | H86: =CasaPLUS!I86 -> 450
C87: Gasfiteria | E87: - | F87: 850 | G87: 3 eventos | H87: =CasaPLUS!I87 -> 850
C88: Electricidad | E88: - | F88: 850 | G88: 2 eventos | H88: =CasaPLUS!I88 -> 850
C89: Vidrieria | E89: - | F89: 850 | G89: 2 eventos | H89: =CasaPLUS!I89 -> 850
C90: Housekeeping | E90: 30 | F90: 350 | G90: 2 eventos | H90: =CasaPLUS!I90 -> 350
C91: Ambulancia por emergencia médica o accidental | E91: - | F91: 1500 | G91: 3 eventos | H91: =CasaPLUS!I91 -> 1500
C92: Consulta médica a domicilio | E92: 20 | F92: 400 | G92: 3 eventos | H92: =CasaPLUS!I92 -> 400
C93: Consulta médica por teléfono | E93: - | F93: Sin límite | H93: =CasaPLUS!I93 -> Sin límite
C94: Consulta médica para trabajadoras de hogar | E94: 30 | F94: 400 | G94: 3 eventos | H94: =CasaPLUS!I94 -> 400
C95: Mensajería en recojo y paquetes (hasta 5 kilos) | E95: - | F95: 600 | G95: 2 eventos | H95: =CasaPLUS!I95 -> 600
C96: Valet Parking | E96: - | F96: Sin límite | G96: 2 eventos | H96: =CasaPLUS!I96 -> Sin límite
C97: Mozo a domicilio | E97: - | F97: 1 mozo | G97: 2 eventos | H97: =CasaPLUS!I97 -> 1 mozo
C98: Orientación Veterinaria Telefónica | E98: - | F98: Sin límite | G98: - | H98: =CasaPLUS!I98 -> Sin límite
C99: Asesoría Legal | E99: - | F99: Sin límite | G99: - | H99: =CasaPLUS!I99 -> Sin límite
C100: Servicios de referencia y coordinación | E100: - | F100: Sin límite | G100: - | H100: =CasaPLUS!I100 -> Sin límite
C101: Mantenimiento de Preventivo de Línea Blanca | E101: - | F101: 250 | G101: 2 eventos | H101: =CasaPLUS!I101 -> 250
C102: =CasaPLUS!C102 -> * El Sublimite señalado por cada asistencia corresponde al importe máximo del servicio brindado dentro de la vigencia de la póliza. Las asistencias están disponibles en algunas ciudades, sujetos al tipo de servicio requerido y al radio de acción. Se aplican restricciones por zona y horario.
C106: Exclusiones
C107: - Viviendas en cuyo interior se efectúen labores comerciales, industriales o de servicios
C108: - Viviendas ubicadas a una distancia menor a 100 metros del mar
C109: - Viviendas, casas y departamentos cuyo material de construcción predomínate NO sea ladrillo, cemento y fierro
C110: - Viviendas ubicadas en asentamientos informales o asentamientos humanos o en lotes no urbanizados o en lotes rurales o en condición de infravivienda
C113: Importante
C114: - El Asegurado deberá completar y firmar la Solicitud de Seguro
K116: Dolares | L116: Soles
C117: TASA NETA ANUAL COBERTURA PRINCIPAL (aplicado al VD de Vivienda + Contenido asegurada) | J117: 1.9 | K117: =J117*O14/1000 -> 180.5 | L117: =J117*O14/1000 -> 180.5
C118: TASA NETA ANUAL COB ADICIONALES (Aplicado al VD del contenido Asegurado | J118: 8 | K118: =N14*J118/1000 -> 40 | L118: =N14*J118/1000 -> 40
C119: PRIMA NETA | K119: =SUM(K117:K118) -> 220.5 | L119: =SUM(L117:L118) -> 220.5
C120: DERECHO DE EMISION % | J120: 0.03 | K120: =K119*J120 -> 6.615 | L120: =L119*J120 -> 6.615
C121: DERECHO DE EMISION MINIMO | K121: 5 | L121: 18
C122: PRIMA COMERCIAL APLICADA | K122: =IF(K120>K121,K119+K120,K119+K121) -> 227.115 | L122: =IF(L120>L121,L119+L120,L119+L121) -> 238.5
C123: PRIMA COMERCIAL MINIMA CASAMAR | K123: =100+K121 -> 105 | L123: =(100*V6)+L121 -> 428
C124: ¿ASEGURA EDIFICIO? | K124: =IF(M14<AG4,"NO","SI") -> SI | L124: =K124 -> SI
C125: ¿ASEGURA CONTENIDO? | K125: =IF(N14>999,"SI","NO") -> SI | L125: =K125 -> SI
C126: ¿EXCEDE LIMITE ASEGURADO? | K126: =IF(O14>V7,"SI","NO") -> NO | L126: =IF(O14>V7*V6,"SI","NO") -> NO
C127: PRIMA COMERCIAL VALIDADA | K127: =IF(OR(K124="NO",K125="NO",K126="SI"),"No aplica",IF(K122>K123,K122,K123)) -> 227.115 | L127: =IF(OR(L124="NO",L125="NO",L126="SI"),"No aplica",IF(L122>L123,L122,L123)) -> 428
C128: PRIMA COMERCIAL + IGV | K128: =IFERROR(K127*1.18,"No aplica") -> 267.9957 | L128: =IFERROR(L127*1.18,"No aplica") -> 505.04

Sheet Hoja1 (hidden)
A3: DEDUCIBLES CP | D3: Moneda | E3: Minimo
A4: =CasaPLUS!C27 -> Incendio y/o rayo, explosión, daños por agua, lluvia e inundación, caída de aeronaves, impacto de vehículos terrestres, daños por humo. | B4: =CONCATENATE(Hoja1!C4," ",Hoja1!D4," ",Hoja1!E4, ,Hoja1!F4) -> 10% del Monto Indemnizable mínimo US$ 200 | C4: 10% del Monto Indemnizable mínimo | D4: =IF(CasaPLUS!D8=CasaPLUS!U3,CasaPLUS!V3,CasaPLUS!V4) -> US$ | E4: =IF(D4=CasaPLUS!V3,Hoja1!H4,Hoja1!H4*CasaPLUS!V6) -> 200 | H4: 200
A5: =CasaPLUS!C28 -> Terremoto, temblor, erupción volcánica, maremoto (Tsunami), salida de mar, marejada, oleaje. | B5: =CONCATENATE(Hoja1!C5," ",Hoja1!D5," ",Hoja1!E5, ,Hoja1!F5) -> 1% de la Suma Asegurada de la Vivienda + Contenido, minimo US$ 500,lo que resulte mayor | C5: 1% de la Suma Asegurada de la Vivienda + Contenido, minimo | D5: =D4 -> US$ | E5: =IF(D5=CasaPLUS!V3,Hoja1!H5,Hoja1!H5*CasaPLUS!V6) -> 500 | F5: ,lo que resulte mayor | H5: 500
A6: =CasaPLUS!C29 -> Huelga y conmoción civil, daño malicioso, vandalismo y/o terrorismo, limite agregado vigencia hasta. | B6: =CONCATENATE(Hoja1!C6," ",Hoja1!D6," ",Hoja1!E6, ,Hoja1!F6) -> 5% del monto indemnizable mínimo US$ 200 | C6: 5% del monto indemnizable mínimo | D6: =D4 -> US$ | E6: =IF(D6=CasaPLUS!V3,Hoja1!H6,Hoja1!H6*CasaPLUS!V6) -> 200 | H6: 200
A7: =CasaPLUS!C35 -> Rotura de vidrios, espejos y unidades sanitarias, hasta el 20% de la Suma Asegurada de la Vivienda, máximo: | B7: =CONCATENATE(Hoja1!C7," ",Hoja1!D7," ",Hoja1!E7, ,Hoja1!F7) -> 10% del Monto Indemnizable, mínimo US$ 30 | C7: 10% del Monto Indemnizable, mínimo | D7: =D4 -> US$ | E7: =IF(D7=CasaPLUS!V3,Hoja1!H7,Hoja1!H7*CasaPLUS!V6) -> 30 | H7: 30
A8: =CasaPLUS!C39 -> Robo de instalaciones fijas, hasta el 20% de la Suma Asegurada de la Vivienda, máximo: | B8: =CONCATENATE(Hoja1!C8," ",Hoja1!D8," ",Hoja1!E8, ,Hoja1!F8) -> 15% del Monto Indemnizable, mínimo US$ 200 | C8: 15% del Monto Indemnizable, mínimo | D8: =D4 -> US$ | E8: =IF(D8=CasaPLUS!V3,Hoja1!H8,Hoja1!H8*CasaPLUS!V6) -> 200 | H8: 200
A9: =CasaPLUS!C33 -> Responsabilidad Civil Extracontractual Frente a Terceros, por evento y en agregado vigencia hasta: | B9: =CONCATENATE(Hoja1!C9," ",Hoja1!D9," ",Hoja1!E9, ,Hoja1!F9) -> US$ 200 | D9: =D6 -> US$ | E9: =IF(D9=CasaPLUS!V3,Hoja1!H9,Hoja1!H9*CasaPLUS!V6) -> 200 | H9: 200
A10: =CasaPLUS!C44 -> Robo de Bienes Contenidos en la Vivienda hasta: | B10: =CONCATENATE(Hoja1!C10," ",Hoja1!D10," ",Hoja1!E10, ,Hoja1!F10) -> 15% del Monto Indemnizable, mínimo US$ 500 | C10: 15% del Monto Indemnizable, mínimo | D10: =D5 -> US$ | E10: =IF(D10=CasaPLUS!V3,Hoja1!H10,Hoja1!H10*CasaPLUS!V6) -> 500 | H10: 500
A11: =CasaPLUS!C46 -> Robo de Contenidos Especiales (joyas, alhajas, perlas, platería, relojes personales, obras de arte, pieles, instrumentos musicales y colecciones en general) dentro o fuera de los predios, con un límite por bien de US$1,000. La Suma Asegurada está limitada al 30% de la suma asegurada del Contenido, hasta: | B11: =CONCATENATE(Hoja1!C11," ",Hoja1!D11," ",Hoja1!E11, ,Hoja1!F11) -> 15% del Monto Indemnizable, mínimo US$ 300 | C11: 15% del Monto Indemnizable, mínimo | D11: =D7 -> US$ | E11: =IF(D11=CasaPLUS!V3,Hoja1!H11,Hoja1!H11*CasaPLUS!V6) -> 300 | H11: 300
A12: =CasaPLUS!C47 -> Robo de dinero en Efectivo dentro de la Vivienda, hasta: | B12: =CONCATENATE(Hoja1!C12," ",Hoja1!D12," ",Hoja1!E12, ,Hoja1!F12) -> US$ 50 | D12: =D8 -> US$ | E12: =IF(D12=CasaPLUS!V3,Hoja1!H12,Hoja1!H12*CasaPLUS!V6) -> 50 | H12: 50
A13: =CasaPLUS!C48 -> Robo de dinero en tránsito solo por asalto, hasta: | B13: =CONCATENATE(Hoja1!C13," ",Hoja1!D13," ",Hoja1!E13, ,Hoja1!F13) -> US$ 50 | D13: US$ | E13: =IF(D13=CasaPLUS!V3,Hoja1!H13,Hoja1!H13*CasaPLUS!V6) -> 50 | H13: 50
A14: =CasaPLUS!C49 -> Daños internos de equipos electrónicos y equipos eléctricos, hasta el 10% de la Suma Asegurada del Contenido, máximo: | B14: =CONCATENATE(Hoja1!C14," ",Hoja1!D14," ",Hoja1!E14, ,Hoja1!F14) -> 10% del Monto Indemnizable, mínimo US$ 50 | C14: 10% del Monto Indemnizable, mínimo | D14: US$ | E14: =IF(D14=CasaPLUS!V3,Hoja1!H14,Hoja1!H14*CasaPLUS!V6) -> 50 | H14: 50
A15: =CasaPLUS!C50 -> Asistencia médica urgente por lesiones en un robo con un límite por persona de US$1,000 y en agregado vigencia máximo: | B15: =CONCATENATE(Hoja1!C15," ",Hoja1!D15," ",Hoja1!E15, ,Hoja1!F15) -> Sin deducible US$ | C15: Sin deducible | D15: US$
A16: =CasaPLUS!C51 -> 0 | B16: =CONCATENATE(Hoja1!C16," ",Hoja1!D16," ",Hoja1!E16, ,Hoja1!F16) -> US$ | D16: US$
A17: =CasaPLUS!C52 -> Alojamiento temporal por inhabilitación de la vivienda, con un límite mensual de US$ 1,000 y en agregado vigencia máximo: | B17: =CONCATENATE(Hoja1!C17," ",Hoja1!D17," ",Hoja1!E17, ,Hoja1!F17) -> Sin deducible | C17: Sin deducible
A18: =CasaPLUS!C53 -> Daños durante el traslado del contenido asegurado al alojamiento temporal, hasta el 50% de la Suma Asegurada del Contenido, máximo: | B18: =CONCATENATE(Hoja1!C18," ",Hoja1!D18," ",Hoja1!E18, ,Hoja1!F18) -> 10% del Monto Indemnizable, mínimo US$ 50 | C18: 10% del Monto Indemnizable, mínimo | D18: =D4 -> US$ | E18: =IF(D18=CasaPLUS!V3,Hoja1!H18,Hoja1!H18*CasaPLUS!V6) -> 50 | H18: 50
A19: =CasaPLUS!C54 -> Perdida de alimentos en equipos de refrigeración, hasta el 5% de la Suma Asegurada del Contenido, máximo: | B19: =CONCATENATE(Hoja1!C19," ",Hoja1!D19," ",Hoja1!E19, ,Hoja1!F19) -> 10% del Monto Indemnizable, mínimo US$ 50 | C19: 10% del Monto Indemnizable, mínimo | D19: US$ | E19: =IF(D19=CasaPLUS!V3,Hoja1!H19,Hoja1!H19*CasaPLUS!V6) -> 50 | H19: 50
A20: =CasaPLUS!C55 -> Pérdida de equipaje por viaje dentro o fuera del país, hasta el 10% de la Suma Asegurada del Contenido, máximo: | B20: =CONCATENATE(Hoja1!C20," ",Hoja1!D20," ",Hoja1!E20, ,Hoja1!F20) -> 10% del Monto Indemnizable, mínimo US$ 50 | C20: 10% del Monto Indemnizable, mínimo | D20: US$ | E20: =IF(D20=CasaPLUS!V3,Hoja1!H20,Hoja1!H20*CasaPLUS!V6) -> 50 | H20: 50
A21: =CasaPLUS!C56 -> Deshonestidad o apropiación ilícita de trabajadores del hogar, por evento y en agregado vigencia hasta: | B21: =CONCATENATE(Hoja1!C21," ",Hoja1!D21," ",Hoja1!E21, ,Hoja1!F21) -> 10% del Monto Indemnizable, mínimo US$ 200 | C21: 10% del Monto Indemnizable, mínimo | D21: =D4 -> US$ | E21: =IF(D21=CasaPLUS!V3,Hoja1!H21,Hoja1!H21*CasaPLUS!V6) -> 200 | H21: 200
A22: =CasaPLUS!C57 -> Compensación por Muerte accidental del Asegurado o de su cónyuge o conviviente | B22: =CONCATENATE(Hoja1!C22," ",Hoja1!D22," ",Hoja1!E22, ,Hoja1!F22) -> Sin deducible | C22: Sin deducible
A23: =CasaPLUS!C58 -> Gastos de Curación de empleados (Trabajadores del hogar), hasta US$ 1,000 por evento, y en agregado vigencia hasta: | B23: =CONCATENATE(Hoja1!C23," ",Hoja1!D23," ",Hoja1!E23, ,Hoja1!F23) -> Sin deducible | C23: Sin deducible
A24: =CasaPLUS!C59 -> Gastos de sepelio para el asegurado o su cónyuge o hijos, hasta | B24: =CONCATENATE(Hoja1!C24," ",Hoja1!D24," ",Hoja1!E24, ,Hoja1!F24) -> Sin deducible | C24: Sin deducible
A25: =CasaPLUS!C60 -> Gastos de sepelio para el trabajador del hogar, hasta | B25: =CONCATENATE(Hoja1!C25," ",Hoja1!D25," ",Hoja1!E25, ,Hoja1!F25) -> Sin deducible | C25: Sin deducible
A29: DEDUCIBLES CM | D29: Moneda | E29: Minimo
A30: =+CasaMAR!C26 -> Incendio y/o rayo, explosión, daños por agua, lluvia e inundación, caída de aeronaves, impacto de vehículos terrestres, daños por humo. | B30: =CONCATENATE(Hoja1!C30," ",Hoja1!D30," ",Hoja1!E30, ,Hoja1!F30) -> 10% del Monto Indemnizable mínimo US$ 500 | C30: 10% del Monto Indemnizable mínimo | D30: =IF(CasaMAR!D8=CasaMAR!U3,CasaMAR!V3,CasaMAR!V4) -> US$ | E30: =IF(CasaMAR!$D$8=CasaMAR!$U$3,Hoja1!H30,Hoja1!H30*CasaMAR!$V$6) -> 500 | H30: 500
A31: =+CasaMAR!C27 -> Terremoto, temblor, erupción volcánica, maremoto (Tsunami), salida de mar, marejada, oleaje. | B31: =CONCATENATE(Hoja1!C31," ",Hoja1!D31," ",Hoja1!E31, ,Hoja1!F31) -> 1% de la Suma Asegurada de la Vivienda + Contenido, minimo US$ 2000,lo que resulte mayor | C31: 1% de la Suma Asegurada de la Vivienda + Contenido, minimo | D31: =$D$30 -> US$ | E31: =IF(CasaMAR!$D$8=CasaMAR!$U$3,Hoja1!H31,Hoja1!H31*CasaMAR!$V$6) -> 2000 | F31: ,lo que resulte mayor | H31: 2000
A32: =+CasaMAR!C28 -> Huelga y conmoción civil, daño malicioso, vandalismo y/o terrorismo, limite agregado vigencia hasta: | B32: =CONCATENATE(Hoja1!C32," ",Hoja1!D32," ",Hoja1!E32, ,Hoja1!F32) -> 5% del monto indemnizable mínimo US$ 500 | C32: 5% del monto indemnizable mínimo | D32: =$D$30 -> US$ | E32: =IF(CasaMAR!$D$8=CasaMAR!$U$3,Hoja1!H32,Hoja1!H32*CasaMAR!$V$6) -> 500 | H32: 500
A33: =+CasaMAR!C29 -> 0 | B33: =CONCATENATE(Hoja1!C33," ",Hoja1!D33," ",Hoja1!E33, ,Hoja1!F33) -> 
A34: =+CasaMAR!C30 -> 0 | B34: =CONCATENATE(Hoja1!C34," ",Hoja1!D34," ",Hoja1!E34, ,Hoja1!F34) -> 
A35: =+CasaMAR!C31 -> 0 | B35: =CONCATENATE(Hoja1!C35," ",Hoja1!D35," ",Hoja1!E35, ,Hoja1!F35) -> 
A36: =+CasaMAR!C32 -> Rotura de vidrios, espejos y unidades sanitarias, hasta el 10% de la Suma Asegurada de la Vivienda, máximo: | B36: =CONCATENATE(Hoja1!C36," ",Hoja1!D36," ",Hoja1!E36, ,Hoja1!F36) -> 10% del Monto Indemnizable, mínimo US$ 30 | C36: 10% del Monto Indemnizable, mínimo | D36: =$D$30 -> US$ | E36: 30
A37: =+CasaMAR!C34 -> Gastos de remoción de escombros, hasta el 10% de la Suma Asegurada de la Vivienda + Contenido, máximo: | B37: =CONCATENATE(Hoja1!C37," ",Hoja1!D37," ",Hoja1!E37, ,Hoja1!F37) -> Sin Deducible | C37: Sin Deducible
A38: =+CasaMAR!C35 -> Gastos de extinción y contención del siniestro, hasta el 10% de la Suma Asegurada de la Vivienda + Contenido, máximo: | B38: =CONCATENATE(Hoja1!C38," ",Hoja1!D38," ",Hoja1!E38, ,Hoja1!F38) -> Sin Deducible | C38: Sin Deducible
A39: =+CasaMAR!C48 -> Robo de Instalaciones fijas, hasta el 20% de la Suma Asegurada de la Vivienda máximo | B39: =CONCATENATE(Hoja1!C39," ",Hoja1!D39," ",Hoja1!E39, ,Hoja1!F39) -> 15% del Monto Indemnizable, mínimo US$ 200 | C39: 15% del Monto Indemnizable, mínimo | D39: =D30 -> US$ | E39: 200
A40: =+CasaMAR!C38 -> Responsabilidad Civil | B40: =CONCATENATE(Hoja1!C40," ",Hoja1!D40," ",Hoja1!E40, ,Hoja1!F40) -> 
A41: =+CasaMAR!C36 -> Responsabilidad civil Extracontractual Frente a Terceros limite en agregado vigencia, hasta: | B41: =CONCATENATE(Hoja1!C41," ",Hoja1!D41," ",Hoja1!E41, ,Hoja1!F41) -> US$ 200 | D41: =$D$30 -> US$ | E41: 200
A42: =+CasaMAR!C50 -> Gastos por emergencias médicas de terceros, hasta US$ 1,000 por persona, y en agregado vigencia máximo: | B42: =CONCATENATE(Hoja1!C42," ",Hoja1!D42," ",Hoja1!E42, ,Hoja1!F42) -> Sin Deducible | C42: Sin Deducible
A43: =+CasaMAR!C49 -> Responsabilidad Civil Patronal (frente al trabajador del hogar), por evento y en el agregado vigencia hasta: | B43: =CONCATENATE(Hoja1!C43," ",Hoja1!D43," ",Hoja1!E43, ,Hoja1!F43) -> Sin Deducible | C43: Sin Deducible
A44: =+CasaMAR!C39 -> 1.2.4 - Responsabilidad Civil por los daños personales que ocasione la posesión de mascotas, hasta: | B44: =CONCATENATE(Hoja1!C44," ",Hoja1!D44," ",Hoja1!E44, ,Hoja1!F44) -> 
A45: =+CasaMAR!C40 -> II. PROGRAMA FULL | B45: =CONCATENATE(Hoja1!C45," ",Hoja1!D45," ",Hoja1!E45, ,Hoja1!F45) -> 
A46: =+CasaMAR!C41 -> Robo | B46: =CONCATENATE(Hoja1!C46," ",Hoja1!D46," ",Hoja1!E46, ,Hoja1!F46) -> 
A47: =+CasaMAR!C42 -> Robo de Bienes Contenidos en la Vivienda hasta | B47: =CONCATENATE(Hoja1!C47," ",Hoja1!D47," ",Hoja1!E47, ,Hoja1!F47) -> Eventos ocurridos entre Diciembre y Abril: 10% del Monto Indemnizable, mínimo US$ 500 | C47: Eventos ocurridos entre Diciembre y Abril: 10% del Monto Indemnizable, mínimo | D47: =$D$30 -> US$ | E47: 500
A48: =+CasaMAR!C43 -> 0 | B48: =CONCATENATE(Hoja1!C48," ",Hoja1!D48," ",Hoja1!E48, ,Hoja1!F48) -> Eventos ocurridos entre Mayo a Noviembre: 10% del Monto Indemnizable, mínimo US$ 2500 | C48: Eventos ocurridos entre Mayo a Noviembre: 10% del Monto Indemnizable, mínimo | D48: =$D$30 -> US$ | E48: 2500
A49: =+CasaMAR!C44 -> 2.1.2 Contenidos Especiales (joyas, alhajas, perlas, platería, relojes personales, obras de arte, pieles, instrumentos musicales y colecciones en general) que se encuentren dentro de la vivienda y con un límite por bien de US$1,000. La Suma Asegurada está limitada al 30% de la suma asegurada del Contenido, máximo: | B49: =CONCATENATE(Hoja1!C49," ",Hoja1!D49," ",Hoja1!E49, ,Hoja1!F49) -> 
A50: =+CasaMAR!C45 -> Robo de Dinero en efectivo dentro de la vivienda, hasta US$ 1,000 por evento y en agregado vigencia máximo: | B50: =CONCATENATE(Hoja1!C50," ",Hoja1!D50," ",Hoja1!E50, ,Hoja1!F50) -> US$ 50 | D50: =$D$30 -> US$ | E50: 50
A51: =+CasaMAR!C46 -> 2.1.4 - Dinero en Tránsito solo por Asalto, maximo | B51: =CONCATENATE(Hoja1!C51," ",Hoja1!D51," ",Hoja1!E51, ,Hoja1!F51) -> 
A52: =+CasaMAR!C47 -> Especiales | B52: =CONCATENATE(Hoja1!C52," ",Hoja1!D52," ",Hoja1!E52, ,Hoja1!F52) -> 
A53: =+CasaMAR!C51 -> Daños internos de equipos electrónicos y equipos eléctricos, hasta el 10% de la Suma Asegurada del Contenido, máximo: | B53: =CONCATENATE(Hoja1!C53," ",Hoja1!D53," ",Hoja1!E53, ,Hoja1!F53) -> 10% del Monto Indemnizable, mínimo US$ 50 | C53: 10% del Monto Indemnizable, mínimo | D53: =$D$30 -> US$ | E53: 50
A54: =+CasaMAR!C52 -> Asistencia médica urgente por lesiones en un robo con un límite por persona de US$1,000 y en la vigencia hasta: | B54: =CONCATENATE(Hoja1!C54," ",Hoja1!D54," ",Hoja1!E54, ,Hoja1!F54) -> Sin Deducible | C54: Sin Deducible
A55: =+CasaMAR!C53 -> 0 | B55: =CONCATENATE(Hoja1!C55," ",Hoja1!D55," ",Hoja1!E55, ,Hoja1!F55) -> 
A56: =+CasaMAR!C54 -> Alojamiento temporal por inhabilitación de la vivienda, con un límite mensual de US$ 1,000 y en la vigencia hasta: | B56: =CONCATENATE(Hoja1!C56," ",Hoja1!D56," ",Hoja1!E56, ,Hoja1!F56) -> Sin Deducible | C56: Sin Deducible
A57: =+CasaMAR!C55 -> Daños durante el traslado del contenido asegurado al alojamiento temporal, hasta el 50% de la Suma Asegurada del Contenido, máximo: | B57: =CONCATENATE(Hoja1!C57," ",Hoja1!D57," ",Hoja1!E57, ,Hoja1!F57) -> 10% del Monto Indemnizable, mínimo US$ 50 | C57: 10% del Monto Indemnizable, mínimo | D57: =$D$30 -> US$ | E57: 50
A58: =+CasaMAR!C56 -> Perdida de alimentos en equipos de refrigeración, hasta el 5% de la Suma Asegurada del Contenido, máximo: | B58: =CONCATENATE(Hoja1!C58," ",Hoja1!D58," ",Hoja1!E58, ,Hoja1!F58) -> 10% del Monto Indemnizable, mínimo US$ 50 | C58: 10% del Monto Indemnizable, mínimo | D58: =$D$30 -> US$ | E58: 50
A59: =+CasaMAR!C57 -> 2.2.6 Pérdida de equipaje y/o de los bienes portados por el Asegurado y/o cónyuge y/o hijos en caso de viaje dentro o fuera del país, hasta el 10% de la Suma Asegurada del Contenido, máximo: | B59: =CONCATENATE(Hoja1!C59," ",Hoja1!D59," ",Hoja1!E59, ,Hoja1!F59) -> 
A60: =+CasaMAR!C58 -> Deshonestidad o apropiación ilícita de trabajadores del hogar, limite en agregado vigencia hasta: | B60: =CONCATENATE(Hoja1!C60," ",Hoja1!D60," ",Hoja1!E60, ,Hoja1!F60) -> 10% del Monto Indemnizable, mínimo US$ 200 | C60: 10% del Monto Indemnizable, mínimo | D60: =$D$30 -> US$ | E60: 200
A61: =+CasaMAR!C59 -> Accidentes Personales | B61: =CONCATENATE(Hoja1!C61," ",Hoja1!D61," ",Hoja1!E61, ,Hoja1!F61) -> 
A62: =+CasaMAR!C60 -> Compensación por Muerte accidental del Asegurado o de su cónyuge o conviviente | B62: =CONCATENATE(Hoja1!C62," ",Hoja1!D62," ",Hoja1!E62, ,Hoja1!F62) -> Sin Deducible | C62: Sin Deducible
A63: =+CasaMAR!C61 -> Gastos de Curación de empleados (Trabajadores del hogar), hasta US$ 1,000 por evento, maximo: | B63: =CONCATENATE(Hoja1!C63," ",Hoja1!D63," ",Hoja1!E63, ,Hoja1!F63) -> Sin Deducible | C63: Sin Deducible
A64: =+CasaMAR!C62 -> 2.3.3 Gastos de Sepelio del Asegurado y/o conyuge y/o hijos | B64: =CONCATENATE(Hoja1!C64," ",Hoja1!D64," ",Hoja1!E64, ,Hoja1!F64) -> 
A65: =+CasaMAR!C63 -> 2.3.4 Gastos de Sepelio por muerte del trabajador del hogar | B65: =CONCATENATE(Hoja1!C65," ",Hoja1!D65," ",Hoja1!E65, ,Hoja1!F65) -> 
